Cogmind - Beta 17 @@@ ROGUE MODE // 2026.07.24 @ 18:35:06 Player: Cinder Result: Self-destructed Performance ------------- Evolutions (2) 1000 Regions Visited (5) 1000 Robots Destroyed (46) 230 Value Destroyed (1021) 1021 Prototype IDs (2) 40 Alien Tech Used (0) 0 Bonus (57) 57 TOTAL SCORE: 3348 Bonus ------- High Alert Combat Kills 57 Cogmind --------- Core Integrity 175/550 Matter 254/300 Energy 145/250 System Corruption 0% Temperature Critical (640) Movement Core (1800) Ox35 Location -8/Materials Parts ------- > --- POWER (1) -------- Ion Engine > --- PROPULSION (3) --- Wheel > --- UTILITY (5) ------ Huge Storage Unit Signal Interpreter Light Armor Plating Medium Armor Plating Tractor Beam > --- WEAPON (2) ------- Heavy Particle Cannon Ion Cannon > --- INVENTORY (25) --- Light Ion Engine High-capacity Matter Pod (200) Seismic Detector Medium Armor Plating Tractor Beam Tractor Beam Gatling Laser Gatling Laser Gatling Laser Gatling Laser Ion Cannon Mini Grenade Launcher Peak State ------------ > --- POWER ------------ Light Deuterium Engine > --- PROPULSION ------- Wheel Wheel Wheel > --- UTILITY ---------- Huge Storage Unit Experimental Sensor Array Signal Interpreter Light Armor Plating Shock Absorption System > --- WEAPON ----------- Improved EM Shotgun Mini Grenade Launcher > --- INVENTORY -------- Ion Engine Wheel Wheel Wheel Wheel High-capacity Matter Pod Light Armor Plating Medium Armor Plating Tractor Beam Tractor Beam Heavy Particle Cannon Ion Cannon Ion Cannon Assault Rifle Light Assault Rifle Light Cannon Light Cannon Grenade Launcher Mini Grenade Launcher Hammer [Rating: 29] Favorites ----------- Power Ion Engine Engine Ion Engine Propulsion Wheel Wheel Wheel Utility Huge Storage Unit Device Tractor Beam Storage Huge Storage Unit Processor Signal Interpreter Protection Light Armor Plating Weapon Assault Rifle Energy Gun Improved EM Shotgun Energy Cannon Heavy Particle Cannon Ballistic Gun Assault Rifle Ballistic Cannon Light Cannon Launcher Grenade Launcher Build | -11 -10 -10 -10 -9 -8 ------- Run | Yrd Mat Min Exi Min Mat Slots Evolved 4 | . . . . . 4 Power . | . . . . . . Propulsion 1 | . . . . . 1 Utility 3 | . . . . . 3 Weapon . | . . . . . . Parts Attached 32 | 6 3 2 . 2 19 Power 3 | 1 . . . 1 1 Engine 3 | 1 . . . 1 1 Core . | . . . . . . Reactor . | . . . . . . Propulsion 8 | 2 . . . . 6 Treads . | . . . . . . Leg . | . . . . . . Wheel 8 | 2 . . . . 6 Hover . | . . . . . . Flight . | . . . . . . Utility 12 | 1 2 1 . 1 7 Device 4 | . 1 . . . 3 Storage 2 | 1 1 . . . . Processor 1 | . . . . . 1 Hackware . | . . . . . . Protection 5 | . . 1 . 1 3 Artifact . | . . . . . . Weapon 9 | 2 1 1 . . 5 Energy Gun 1 | . . . . . 1 Energy Cannon 2 | . . . . . 2 Ballistic Gun 2 | 2 . . . . . Ballistic Cannon 1 | . . 1 . . . Launcher 3 | . 1 . . . 2 Special Weapon . | . . . . . . Impact Weapon . | . . . . . . Slashing Weapon . | . . . . . . Piercing Weapon . | . . . . . . Special Melee Weapon . | . . . . . . Unidentified Prototypes 2 | . . . . . 2 Parts Lost 17 | . . . . 2 15 Power 2 | . . . . 1 1 Propulsion 7 | . . . . . 7 Utility 5 | . . . . 1 4 Weapon 3 | . . . . . 3 Highest Loss Streak 10 | . . . . 2 10 To Critical Strikes . | . . . . . . Average Backups 16 | . 7 17 23 23 15 Power 1 | . 1 1 2 1 . Propulsion 2 | . . 2 5 5 2 Utility 5 | . 2 6 7 7 4 Weapon 7 | . 3 7 9 9 7 Tool/Special . | . . . . . . Unused Backups 15 | . 1 . . . 14 Power 1 | . . . . . 1 Propulsion . | . . . . . . Utility 4 | . 1 . . . 3 Weapon 10 | . . . . . 10 Tool/Special . | . . . . . . Average Slot Usage (%) 96 | . 97 100 100 98 88 Engine 12 | . 14 14 14 13 7 Wheel 27 | . 28 28 28 28 24 Device 5 | . 11 3 . . 10 Storage 12 | . 14 14 14 14 9 Processor 2 | . . . . . 8 Protection 9 | . . 10 14 13 13 Energy Cannon 1 | . . . . . 7 Ballistic Gun 11 | . 17 14 14 14 2 Launcher 10 | . 10 11 14 14 3 Peak Build Rating 29 | 6 8 10 10 12 29 Average Rating 11 | 4 7 8 10 10 19 On Entrance 7 | . 6 8 10 10 12 Avg Prop Armor Cover (%) . | . . . . . . Naked Turns . | . . . . . . Heaviest Build 112 | 13 91 93 93 93 112 Greatest Support 36 | 20 20 20 20 20 36 Greatest Overweight (x) 4 | . 4 4 4 4 4 Average Overweight (x) 3 | . 1 4 4 4 3 Largest Inventory Capacity 25 | 8 25 25 25 25 25 Average Capacity 22 | 7 15 25 25 25 25 Most Carried 24 | 2 14 23 23 24 23 Average Carried 16 | 1 7 17 23 23 15 Final Capacity 25 | 8 25 25 25 25 25 Final Carried 23 | 2 14 23 23 23 12 Class Distribution -------------------- 97% | Mutant Dominant Class ---------------- Mutant | -10/Materials Mutant | -10/Mines Mutant | -10/Exiles Mutant | -9/Mines Mutant | -8/Materials Resources | -11 -10 -10 -10 -9 -8 ----------- Run | Yrd Mat Min Exi Min Mat Matter Collected 1117 | 257 320 164 . 101 275 Remotely 408 | . 147 2 . . 259 Salvage Created 793 | . 122 163 . 124 384 Parts 55 | . 8 13 . 8 26 Haulers Intercepted 1 | . . . . . 1 Recyclers Shooed 1 | . . . . . 1 Parts Field Recycled . | . . . . . . Retrieved Matter . | . . . . . . Parts Self-Destructed . | . . . . . . Prevented . | . . . . . . Parts Restored . | . . . . . . Kills | -11 -10 -10 -10 -9 -8 ------- Run | Yrd Mat Min Exi Min Mat Combat Hostiles Destroyed 36 | . 5 8 . 6 17 Guns 6 | . 2 1 . 3 . Cannons 4 | . . 1 . . 3 AOE 26 | . 3 6 . 3 14 Classes Destroyed 10 | . 3 1 . . 6 Worker 4 | . 1 2 . . 1 Tunneler 2 | . . 1 . . 1 Hauler 1 | . . . . . 1 Recycler 2 | . . . . . 2 Operator 1 | . . . . . 1 Swarmer 19 | . 3 6 . 3 7 Cutter 3 | . . . . . 3 Grunt 12 | . 2 2 . 3 5 Sentry 1 | . . . . . 1 Hunter 1 | . . . . . 1 Best Kill Streak 10 | . 4 3 . 3 10 Combat Bots Only 9 | . 3 3 . 3 9 Max Kills in Single Turn 4 | . 3 3 . 2 4 Gunslinging . | . . . . . . Exploded 3 | . 3 3 . 1 3 Melee . | . . . . . . Uniques/NPCs Destroyed . | . . . . . . Combat | -11 -10 -10 -10 -9 -8 -------- Run | Yrd Mat Min Exi Min Mat Hostile Shots Fired 139 | . 9 25 . 16 89 Missed 41 | . 4 9 . 4 24 Hits 98 | . 5 16 . 12 65 Melee 1 | . . . . . 1 Projectile 97 | . 5 16 . 12 64 Critical Strikes 3 | . . . . . 3 Damage Taken 1849 | . 65 225 . 177 1382 Core 461 | . 33 45 . 8 375 Absorbed by Shields . | . . . . . . Ignored by Resistances 43 | . . . . . 43 Core Remaining (%) 82 | 100 . . . 65 . Volleys Fired 59 | . 7 19 . 7 26 Largest 2 | . 2 2 . 2 2 Hottest 135 | . 40 50 . 50 135 Shots Fired 90 | . 10 24 . 14 42 Gun 31 | . 9 15 . 7 . Cannon 34 | . . 4 . . 30 Launcher 25 | . 1 5 . 7 12 Special . | . . . . . . Kinetic 35 | . 9 19 . 7 . Thermal 30 | . . . . . 30 Explosive 25 | . 1 5 . 7 12 Electromagnetic . | . . . . . . Robot Hit Streak 10 | . 5 6 . 5 10 Robot Miss Streak 5 | . 2 2 . 4 5 Penetration Max . | . . . . . . Secondary Targets 1 | . 1 . . . . Max Gunslinging Chain 1 | . 1 . . . . Shots Hit Robots 51 | . 6 15 . 5 25 Core Hits 61 | . 6 12 . 10 33 Critical Kills . | . . . . . . Critical Parts Destroyed . | . . . . . . Critical Strikes . | . . . . . . Melee Attacks . | . . . . . . Impact . | . . . . . . Slashing . | . . . . . . Piercing . | . . . . . . Sneak Attacks . | . . . . . . Combat Hostiles . | . . . . . . Follow-up Attacks . | . . . . . . Damage Inflicted 3316 | . 182 637 . 262 2235 Guns 252 | . 66 133 . 53 . Cannons 593 | . . 56 . . 537 Explosions 2471 | . 116 448 . 209 1698 Melee . | . . . . . . Ramming . | . . . . . . Kinetic 308 | . 66 189 . 53 . Thermal 537 | . . . . . 537 Explosive 2471 | . 116 448 . 209 1698 Electromagnetic . | . . . . . . Impact . | . . . . . . Slashing . | . . . . . . Piercing . | . . . . . . Highest Corruption . | . . . . . . Average Corruption . | . . . . . . Corruption Purged . | . . . . . . Corruption Blocked . | . . . . . . Overload Shots . | . . . . . . Overflow Damage 78 | . . 7 . 2 69 Projectiles . | . . . . . . Explosions 78 | . . 7 . 2 69 Melee . | . . . . . . Knockbacks . | . . . . . . Impact . | . . . . . . Kinetic . | . . . . . . Secondary . | . . . . . . Self-Inflicted Damage 285 | . . 30 . 69 186 Shots 11 | . . 2 . 3 6 Rammed . | . . . . . . Targets Rammed . | . . . . . . Kicked . | . . . . . . Crushed . | . . . . . . Highest Temperature 631 | . 18 22 . 23 631 Average Temperature 112 | . 10 10 . 16 150 Received Heat Transfer 519 | . 27 78 . 27 387 Effects 7 | . . . . . 7 Interference 3 | . . . . . 3 Matter Decay 1 | . . . . . 1 Short Circuit 1 | . . . . . 1 Damage (minor) 1 | . . . . . 1 Damage (core) 1 | . . . . . 1 Siege Activations . | . . . . . . Martial Activations . | . . . . . . Shielding Activations . | . . . . . . Robots Disrupted . | . . . . . . Combat Hostiles . | . . . . . . Robots Corrupted . | . . . . . . Combat Hostiles . | . . . . . . Parts Fried . | . . . . . . Impact Corruptions . | . . . . . . Robots Melted . | . . . . . . Combat Hostiles . | . . . . . . Parts Melted 6 | . 1 . . . 5 Heat Transferred 814 | . . . . . 814 Parts Sabotaged . | . . . . . . Parts Stolen . | . . . . . . Parts Stripped . | . . . . . . Power Chain Reactions . | . . . . . . Alert | -11 -10 -10 -10 -9 -8 ------- Run | Yrd Mat Min Exi Min Mat Maximum Alert Level 2 | . . . . . 2 Low Security (%) 86 | 100 100 100 . 100 52 Level 1 2 | . . . . . 7 Level 2 11 | . . . . . 40 Level 3 . | . . . . . . Level 4 . | . . . . . . Level 5 . | . . . . . . High Security . | . . . . . . Max Security . | . . . . . . Peak Influence 458 | . 115 153 . 107 458 Initial 24 | . . . . . 24 Average 113 | . 48 87 . 64 229 Influence Increases 1331 | . 146 293 . 194 698 Destroy 0b10 Robot/C 720 | . 100 160 . 120 340 Destroy 0b10 Robot/NC 50 | . 5 15 . . 30 Destroy Leader 132 | . 20 30 . 20 62 Successful Hack 23 | . 12 . . . 11 Disable Machine 180 | . . 60 . 30 90 Destroy Structure 181 | . 9 28 . 24 120 Lose Combat Pursuer 45 | . . . . . 45 Influence Decreases 932 | . 146 246 47 130 363 Entered New Map 87 | . . . 47 . 40 Time Decay 675 | . 146 246 . 110 173 Lost Part 170 | . . . . 20 150 Squads Dispatched 5 | . 2 . . . 3 Investigation 1 | . 1 . . . . Extermination . | . . . . . . Reinforcement 4 | . 1 . . . 3 Assault . | . . . . . . Garrison . | . . . . . . Intercept . | . . . . . . Searches Triggered . | . . . . . . Construction Impeded . | . . . . . . Haulers Reinforced . | . . . . . . Active Scanning Responses . | . . . . . . Cargo Convoy Interrupts . | . . . . . . Stealth | -11 -10 -10 -10 -9 -8 --------- Run | Yrd Mat Min Exi Min Mat Distress Signals 3 | . . . . . 3 Communications Jammed . | . . . . . . Distress Signals . | . . . . . . Times Spotted 45 | . 8 8 . 5 24 Peak Tracking Total 8 | . 3 3 . 3 8 Tactical Retreats 2 | . . . . . 2 Traps | -11 -10 -10 -10 -9 -8 ------- Run | Yrd Mat Min Exi Min Mat Traps Triggered . | . . . . . . Indirectly . | . . . . . . Trap Hack Attempts . | . . . . . . Triggered . | . . . . . . Disarmed . | . . . . . . Reprogrammed . | . . . . . . Reused . | . . . . . . Traps Extracted . | . . . . . . Installed . | . . . . . . Triggered . | . . . . . . Machines | -11 -10 -10 -10 -9 -8 ---------- Run | Yrd Mat Min Exi Min Mat Machines Disabled 12 | . . 4 . 2 6 Max in Single Turn 2 | . . 2 . 1 1 Machines Repaired . | . . . . . . Machines Dismantled . | . . . . . . Machines Sabotaged . | . . . . . . Overloaded Fab Kills . | . . . . . . Hacking | -11 -10 -10 -10 -9 -8 --------- Run | Yrd Mat Min Exi Min Mat Machines Accessed 8 | . 4 . 1 . 3 Terminals 7 | . 4 . . . 3 Fabricators . | . . . . . . Repair Stations . | . . . . . . Recycling Units . | . . . . . . Scanalyzers . | . . . . . . Garrison Access . | . . . . . . Total Hacks 20 | . 12 . 1 . 7 Successful 9 | . 4 . 1 . 4 Failed 11 | . 8 . . . 3 Catastrophic . | . . . . . . Database Lockouts . | . . . . . . Manual 15 | . 11 . . . 4 Terminals 19 | . 12 . . . 7 Fabricators . | . . . . . . Repair Stations . | . . . . . . Recycling Units . | . . . . . . Scanalyzers . | . . . . . . Garrison Access . | . . . . . . Terminal Hacks 5 | . 2 . 1 . 2 Record 1 | . . . 1 . . Part Schematic 1 | . 1 . . . . Robot Analysis 1 | . . . . . 1 Branch Access Points 1 | . . . . . 1 Registered Components 1 | . 1 . . . . Fabricator Hacks . | . . . . . . Repair Station Hacks . | . . . . . . Recycling Unit Hacks . | . . . . . . Scanalyzer . | . . . . . . Garrison Access Hacks . | . . . . . . Unauthorized Hacks 4 | . 2 . . . 2 Terminals 4 | . 2 . . . 2 Botnet 4 | . 2 . . . 2 Fabricators . | . . . . . . Repair Stations . | . . . . . . Recycling Units . | . . . . . . Scanalyzers . | . . . . . . Garrison Access . | . . . . . . Data Cores Recovered . | . . . . . . Used . | . . . . . . Hacking Detections 2 | . 1 . . . 1 Full Trace Events . | . . . . . . Feedback Events . | . . . . . . Feedback Blocked . | . . . . . . Robot Schematics Acquired . | . . . . . . Robots Built . | . . . . . . Authchips . | . . . . . . Time . | . . . . . . Total Robot Build Rating . | . . . . . . Part Schematics Acquired 1 | . 1 . . . . Parts Built . | . . . . . . Authchips . | . . . . . . Time . | . . . . . . Total Part Build Rating . | . . . . . . Part Studies Acquired . | . . . . . . Parts Repaired . | . . . . . . Time . | . . . . . . Parts Recycled . | . . . . . . Recycled Matter . | . . . . . . Retrieved Matter . | . . . . . . Retrieved Components . | . . . . . . Parts Scanalyzed . | . . . . . . Part Schematics Acquired . | . . . . . . Parts Damaged . | . . . . . . Bothacking | -11 -10 -10 -10 -9 -8 ------------ Run | Yrd Mat Min Exi Min Mat Used RIF Installer . | . . . . . . Robots Hacked . | . . . . . . Non-combat . | . . . . . . Combat . | . . . . . . Robot Hacks Applied . | . . . . . . Relay Couplers Released . | . . . . . . Fabnet Peak Effective % . | . . . . . . Robots Rewired . | . . . . . . Allies Hacked . | . . . . . . Hacks Repelled . | . . . . . . Allies | -11 -10 -10 -10 -9 -8 -------- Run | Yrd Mat Min Exi Min Mat Total Allies . | . . . . . . Largest Group . | . . . . . . Highest-Rated Group . | . . . . . . Highest-Rated Ally . | . . . . . . Total Orders . | . . . . . . Ally Attacks . | . . . . . . Total Damage . | . . . . . . Kills . | . . . . . . Allies Corrupted . | . . . . . . Allies Melted . | . . . . . . Intel | -11 -10 -10 -10 -9 -8 ------- Run | Yrd Mat Min Exi Min Mat Active Infowar (turns) 151 | . . . . . 151 Sensors 151 | . . . . . 151 Robot Analysis Total 1 | . . . . . 1 Derelict Logs Recovered . | . . . . . . Drone Launches . | . . . . . . Drone Recoveries . | . . . . . . Exploration | -11 -10 -10 -10 -9 -8 ------------- Run | Yrd Mat Min Exi Min Mat Turns Passed 1840 | 38 344 535 259 222 442 Spaces Moved 1262 | 34 307 342 186 140 253 Core 1 | 1 . . . . . Treads . | . . . . . . Legs . | . . . . . . Wheels 1261 | 33 307 342 186 140 253 Hover . | . . . . . . Flight . | . . . . . . Fastest Speed 50 | 50 80 140 140 140 110 Average Speed 126 | 79 100 140 140 140 128 Slowest Speed 140 | 80 140 140 140 140 140 Overloaded Moves . | . . . . . . Propulsion Burnouts . | . . . . . . Robots Hopped . | . . . . . . Potential Cave-ins . | . . . . . . Cave-ins Triggered . | . . . . . . Exploration Rate (%) 45 | 4 66 69 62 47 27 Regions Visited 5 Branch Regions 3 Pre-discovered Areas 1 | . . . 1 . . Known Exits Taken . | . . . . . . Unknown Exits Taken 5 | 1 1 1 1 1 . Scrap Searched 2 | . . . . 2 . Spaces Dug . | . . . . . . Terrain Destroyed 220 | . 6 28 . 36 150 Melee . | . . . . . . Projectile 6 | . . . . . 6 AOE 214 | . 6 28 . 36 144 Terrain Rammed . | . . . . . . Walls Destroyed . | . . . . . . Machines Disabled . | . . . . . . Actions | -11 -10 -10 -10 -9 -8 --------- Run | Yrd Mat Min Exi Min Mat Total 1412 | 41 332 373 185 152 329 Wait 11 | . 1 1 . 2 7 Move 1257 | 33 306 341 185 139 253 Hop . | . . . . . . Pick Up 39 | 2 13 9 . 2 13 Fast Attach 8 | 6 1 . . . 1 Attach 18 | . . . . 2 16 Detach . | . . . . . . Swap 10 | . 2 3 . . 5 Drop 10 | . 2 . . . 8 Fire 59 | . 7 19 . 7 26 Melee . | . . . . . . Ram . | . . . . . . Kick . | . . . . . . Crush . | . . . . . . Escape Stasis . | . . . . . . Rewire . | . . . . . . Trap . | . . . . . . Miscellaneous . | . . . . . . Route ------- -11/Scrapyard -10/Materials (discovered 3 exits: [*Mat] / [*Min x2]) -10/Mines (discovered 3 exits: [*Mat x2] / *Exi) -10/Exiles -9/Mines -8/Materials History --------- Turn | Location | Event 25 | -11/Scrapyard | Discovered new exit (range 14) 39 | -11/Scrapyard | Entered Materials 39 | -10/Materials | Discovered new exit (range 14) 40 | -10/Materials | Met a group of wandering Federalists 253 | -10/Materials | Discovered new exit (range 8) 308 | -10/Materials | Build established: Mutant 329 | -10/Materials | Discovered new exit (range 13) 383 | -10/Materials | Entered Mines 511 | -10/Mines | Assembled infested the area 545 | -10/Mines | Discovered new exit (range 2) 736 | -10/Mines | Discovered new exit (range 10) 913 | -10/Mines | Discovered new exit (range 5) 918 | -10/Mines | Entered Exiles 953 | -10/Exiles | Met 8R-AWN 976 | -10/Exiles | Met EX-HEX 1014 | -10/Exiles | Met EX-BIN 1092 | -10/Exiles | Met EX-DEC 1119 | -10/Exiles | Learned location of Zion (-7) 1162 | -10/Exiles | Discovered new exit (range 14) 1177 | -10/Exiles | Entered Mines 1298 | -9/Mines | Found a damaged Exp. Sensor Array with a note attached 1311 | -9/Mines | Found Prototype Device 1377 | -9/Mines | Discovered new exit (range 13) 1399 | -9/Mines | Entered Materials 1399 | -8/Materials | Evolved 4 slots: Propulsion x1, Utility x3 1406 | -8/Materials | Identified Exp. Sensor Array 1614 | -8/Materials | Lost 10 parts (1p3n3u3w) 1676 | -8/Materials | Destroyed 9 combat bots 1821 | -8/Materials | Lost 3 parts (2n1u) 1830 | -8/Materials | Core integrity fell below 50% 1841 | -8/Materials | Self-destructed Last Messages --------------- 01816_ K-01 Serf sends out distress signal. 01820_ Sml. Matter Pod melted. 01820_ K-01 Serf destroyed. 01821_ Acquired 11 matter. 01826_ U-05 Engineer builds a Wall. 01831_ Overheating: System interference. 01831_ Tractor Beam temporarily disabled. 01831_ U-05 Engineer builds a Wall. 01834_ Wheel destroyed. 01835_ Wheel broken. 01835_ Overheating: Short circuit. 01837_ Overheating: Core damaged (-66). 01838_ Overheating: Matter decay (-51). 01838_ Imp. Heat Sink melted. 01838_ Aluminum Leg melted. 01838_ Lgt. Nuclear Core melted. 01838_ G-47 Trooper destroyed. 01838_ Com. Wheel destroyed. 01838_ U-05 Engineer builds a Wall. 01839_ Overheating: Ion Engine damaged (-30). Map ----- +----------------------------------------------------+ | ?????????????????????????# #?""" #?????????? ? | | ?????????????????????##### # """ #?????????? ? | | ?????????????????????#== # """ #??????? ?? ? | | ?????????????????????#== # #??????? ?? # | | ?????????????????????#!! # """ #???????# ## | | ?????????????????????#!! ## ## """ #???????# # | | ?????????????????????# [## ## """ #???????# # | | ?????????????????????# ## ## #???????# ## | | ?????????????????????###### ## ????##### # | | ??????????????????????????# ####+####### # | | ???????????????????????#### # | | ???????????????????????# [# | | ???????????????????????# %# | | ???????????????????????# ###### + ######[*% # | | ?????????????????????### #### #??## %% ## | | ?????????????????????# ## #??# = # | | ?????????????????????# ## #??# # | | ?????????????????????# # ##???# | | ?????????????????????# # #???## | | ?????????????????????# # #???# | | ?????????????????###### ### %! #????# % | | ?????????????????# # u# # " #????# | | ?????????????????# ] + | # # %* ######"" ## | | ?????????????????# # # # ### # | | ?????????????????# * # ## ###?# """ # | | ?????????????????# ?# @### ###????# """ =[ # | | ?????????????????# = ?# g%### ######## """ =[ # | | ?????????????????# ??+ gu%= / =[ # | | ?????????????????# ]??####+########### / # | | ?????????????????# ???? ?????????# ### | | ?????????????????##???? ] ?????????# #?? | | ??????????????????????# ????????###########?? | | ??????????????????????# ? ????????????????????? | | ???????????????????????###?###???????????????????? | | | | | | | | | | | | | | | | | | | | | | | | | | | | | | | | | +----------------------------------------------------+ Best States ------------- Heat Dissipation 31 Energy Generation 14 Energy Capacity 250 Matter Stores 300 Matter Capacity 300 Sight Range 16 Robot Scan Range 20 Terrain Scan Density 10 Armor Coverage 450 Resistance: EX 25 Evasion (%) 44 Item Schematics ----------------- Huge Storage Unit | -10/Materials | Hacked Robot Schematics ------------------ None Fabricated ------------ Nothing Repaired ---------- Nothing Studied --------- None Alien Tech Used ----------------- None Achievements -------------- None Challenges ------------ None Game ------ Seed WeaponLaunchSabre Manual? 0 Play Time 00:20:52 Cumulative 205.8 hours Start 2026.07.24 @ 18:03:42 End 2026.07.24 @ 18:35:06 Sessions 1 Manual Loads 0 Difficulty Rogue Special Mode None Game No. 267 Rogue 267 Adventurer 0 Explorer 0 Win Type - Total 5 Types 5/0/0/0/0/0/0/0/0/0 Lore% 79 Gallery% 61 Achievement% 49 Wizard Run 0 Options --------- Layout 0 ASCII 0 Keyboard 0 Movement Numpad Keybinds 0 Fullscreen 1 Font 18/Terminus Map View 76x50 Zoom Use 0% Tactical HUD 1 Map Filters NONE Filters NONE Steam 1 RUN: fc8b63e0-bdcb-4e1d-adfb-c49bca922d9e